fUSD/lending_fUSD_20251002
["ID","MTS","AMOUNT","RATE_DAILY","PERIOD"]
[388850903,1759423870751,-3511.65,0.00022191,2]
[388850904,1759423870760,-1614.47,0.00022191,2]
[388850905,1759423870770,-500.0,0.00022191,2]
[388850906,1759423870780,-500.0,0.00022191,2]
[388850907,1759423870789,-500.0,0.00022191,2]
[388850908,1759423870799,-500.59390709,0.00022191,2]
[388850909,1759423870808,-500.0,0.00022191,2]
[388850910,1759423870818,-3211.45,0.00022191,2]
[388850911,1759423870827,-2377.36,0.00022191,2]
[388850912,1759423870837,-500.0,0.00022191,2]
[388850913,1759423870846,-2912.93,0.00022191,2]
[388850914,1759423870856,-500.0,0.00022191,2]
[388850915,1759423870866,-500.0,0.00022191,2]
[388850916,1759423870875,-500.0,0.00022191,2]
[388850917,1759423870884,-1068.61,0.00022191,2]
[388850918,1759423870894,-1068.61,0.00022191,2]
[388850919,1759423870904,-3498.83,0.00022191,2]
[388850920,1759423870913,-500.0,0.00022191,2]
[388850921,1759423870923,-623.29,0.00022191,2]
[388850922,1759423870932,-500.0,0.00022191,2]
[388850923,1759423870942,-500.0,0.00022191,2]
[388850924,1759423870952,-602.93,0.00022191,2]
[388850925,1759423870962,-615.74,0.00022191,2]
[388850926,1759423870972,-500.0,0.00022191,2]
[388850927,1759423870981,-500.0,0.00022191,2]
[388850928,1759423870991,-2340.74,0.00022191,2]
[388850929,1759423871000,-2244.24,0.00022191,2]
[388850930,1759423871010,-500.0,0.00022191,2]
[388850931,1759423871019,-500.0,0.00022191,2]
[388850932,1759423871030,-602.69,0.00022191,2]
[388850933,1759423871040,-1668.33,0.00022191,2]
[388850934,1759423871049,-1050.59,0.00022191,2]
[388850935,1759423871059,-500.0,0.00022191,2]
[388850936,1759423871068,-3250.04,0.00022191,2]
[388850937,1759423871077,-590.53,0.00022191,2]
[388850938,1759423871087,-500.0,0.00022191,2]
[388850939,1759423871096,-500.0,0.00022191,2]
[388850940,1759423871106,-500.0,0.00022191,2]
[388850941,1759423871116,-1740.02,0.00022191,2]
[388850942,1759423871129,-2611.37,0.00022191,2]
[388850943,1759423871139,-352.81284037,0.00022191,2]
[388850944,1759423871148,-1702.56,0.00022191,2]
[388850945,1759423871159,-500.0,0.00022191,2]
[388850946,1759423871168,-1614.57,0.00022191,2]
[388850947,1759423871178,-500.0,0.00022191,2]
[388850948,1759423871187,-2765.19,0.00022191,2]
[388850949,1759423871198,-217.33761802,0.00022191,2]
[388850950,1759423871209,-500.0,0.00022191,2]
[388850951,1759423871218,-500.55681022,0.00022191,2]
[388850952,1759423871227,-695.63,0.00022191,2]
[388850953,1759423871236,-666.64,0.00022191,2]
[388850954,1759423871246,-500.0,0.00022191,2]
[388850955,1759423871255,-1249.84,0.00022191,2]
[388850956,1759423871264,-2746.86,0.00022191,2]
[388850957,1759423871273,-500.0,0.00022191,2]
[388850958,1759423871283,-1589.71,0.00022191,2]
[388850959,1759423871292,-500.0,0.00022191,2]
[388850960,1759423871302,-500.0,0.00022191,2]
[388850961,1759423871311,-1061.22,0.00022191,2]
[388850962,1759423871320,-500.0,0.00022191,2]
[388850963,1759423871329,-500.0,0.00022191,2]
[388850964,1759423871338,-500.0,0.00022191,2]
[388850965,1759423871349,-500.0,0.00022191,2]
[388850966,1759423871358,-500.0,0.00022191,2]
[388850967,1759423871367,-1898.59,0.00022191,2]
[388850968,1759423871376,-500.0,0.00022191,2]
[388850969,1759423871386,-500.0,0.00022191,2]
[388850970,1759423871395,-500.0,0.00022191,2]
[388850971,1759423871404,-500.0,0.00022191,2]
[388850972,1759423871413,-500.0,0.00022191,2]
[388850973,1759423871423,-505.65,0.00022191,2]
[388850974,1759423871432,-500.0,0.00022191,2]
[388850975,1759423871442,-500.0,0.00022191,2]
[388850976,1759423871451,-500.0,0.00022191,2]
[388850977,1759423871460,-616.49249247,0.00022191,2]
[388850978,1759423871470,-500.0,0.00022191,2]
[388850979,1759423871480,-500.0,0.00022191,2]
[388850980,1759423871489,-1895.74,0.00022191,2]
[388850981,1759423871499,-955.04,0.00022191,2]
[388850982,1759423871508,-1205.62,0.00022191,2]
[388850983,1759423871517,-500.0,0.00022191,2]
[388850984,1759423871527,-500.0,0.00022191,2]
[388850985,1759423871537,-500.0,0.00022191,2]
[388850986,1759423871546,-500.0,0.00022191,2]
[388850987,1759423871555,-1298.17,0.00022191,2]
[388850988,1759423871565,-2789.67,0.00022191,2]
[388850989,1759423871574,-632.33,0.00022191,2]
[388850990,1759423871583,-500.0,0.00022191,2]
[388850991,1759423871591,-502.69,0.00022191,2]
[388850992,1759423871601,-5169.4,0.00022191,2]
[388850993,1759423871610,-3655.71,0.00022191,2]
[388850994,1759423871619,-1336.02,0.00022191,2]
[388850995,1759423871629,-734.02,0.00022191,2]
[388850996,1759423871639,-500.0,0.00022191,2]
[388850997,1759423871648,-500.0,0.00022191,2]
[388850998,1759423871658,-500.0,0.00022191,2]
[388850999,1759423871668,-2707.92,0.00022191,2]
[388851000,1759423871678,-500.0,0.00022191,2]
[388851001,1759423871687,-500.0,0.00022191,2]
[388851002,1759423871697,-2349.47,0.00022191,2]
[388851003,1759423871706,-500.0,0.00022191,2]
[388851004,1759423871715,-500.0,0.00022191,2]
[388851005,1759423871724,-4485.35,0.00022191,2]
[388851006,1759423871733,-1625.75,0.00022191,2]
[388851007,1759423871743,-500.0,0.00022191,2]
[388851008,1759423871753,-500.0,0.00022191,2]
[388851009,1759423871763,-500.0,0.00022191,2]
[388851010,1759423871772,-500.0,0.00022191,2]
[388851011,1759423871783,-562.66,0.00022191,2]
[388851012,1759423871792,-500.0,0.00022191,2]
[388851013,1759423871802,-3384.1,0.00022191,2]
[388851014,1759423871812,-1634.12,0.00022191,2]
[388851015,1759423871822,-1143.8,0.00022191,2]
[388851016,1759423871832,-500.0,0.00022191,2]
[388851017,1759423871841,-500.0,0.00022191,2]
[388851018,1759423871850,-500.0,0.00022191,2]
[388851019,1759423871860,-1425.46,0.00022191,2]
[388851020,1759423871869,-2390.2,0.00022191,2]
[388851021,1759423871879,-500.0,0.00022191,2]
[388851022,1759423871889,-500.0,0.00022191,2]
[388851023,1759423871898,-500.0,0.00022191,2]
[388851024,1759423871907,-500.0,0.00022191,2]
[388851025,1759423871917,-500.0,0.00022191,2]
[388851026,1759423871927,-500.0,0.00022191,2]
[388851027,1759423871936,-621.32,0.00022191,2]
[388851028,1759423871946,-500.0,0.00022191,2]
[388851029,1759423871957,-1020.48,0.00022191,2]
[388851030,1759423871966,-500.0,0.00022191,2]
[388851031,1759423871976,-500.0,0.00022191,2]
[388851032,1759423871985,-550.69,0.00022191,2]
[388851033,1759423871994,-500.0,0.00022191,2]
[388851034,1759423872005,-1908.08,0.00022191,2]
[388851035,1759423872015,-500.0,0.00022191,2]
[388851036,1759423872024,-500.0,0.00022191,2]
[388851037,1759423872035,-500.0,0.00022191,2]
[388851038,1759423872044,-1825.53,0.00022191,2]
[388851039,1759423872055,-500.0,0.00022191,2]
[388851040,1759423872064,-4300.53,0.00022191,2]
[388851041,1759423872074,-1190.08,0.00022191,2]
[388851042,1759423872083,-500.0,0.00022191,2]
[388851043,1759423872092,-500.0,0.00022191,2]
[388851044,1759423872102,-604.53,0.00022191,2]
[388851045,1759423872112,-500.0,0.00022191,2]
[388851046,1759423872122,-500.0,0.00022191,2]
[388851047,1759423872132,-1750.95,0.00022191,2]
[388851048,1759423872142,-500.0,0.00022191,2]
[388851049,1759423872152,-500.0,0.00022191,2]
[388851050,1759423872163,-500.0,0.00022191,2]
[388851051,1759423872173,-2120.51,0.00022191,2]
[388851052,1759423872183,-707.24,0.00022191,2]
[388851053,1759423872194,-500.0,0.00022191,2]
[388851054,1759423872205,-1729.48,0.00022191,2]
[388851055,1759423872215,-1789.16,0.00022191,2]
[388851056,1759423872226,-500.0,0.00022191,2]
[388851057,1759423872236,-500.0,0.00022191,2]
[388851058,1759423872246,-500.0,0.00022191,2]
[388851059,1759423872256,-5706.49,0.00022191,2]
[388851060,1759423872266,-500.0,0.00022191,2]
[388851061,1759423872275,-597.27,0.00022191,2]
[388851062,1759423872286,-500.0,0.00022191,2]
[388851063,1759423872296,-1023.06,0.00022191,2]
[388851064,1759423872306,-494.96,0.00022191,2]
[388851065,1759423872315,-662.77,0.00022191,2]
[388851066,1759423872325,-500.0,0.00022191,2]
[388851067,1759423872335,-2526.02,0.00022191,2]
[388851068,1759423872344,-500.0,0.00022191,2]
[388851069,1759423872355,-500.0,0.00022191,2]
[388851070,1759423872365,-500.0,0.00022191,2]
[388851071,1759423872375,-8629.34,0.00022191,2]
[388851072,1759423872384,-728.78,0.00022191,2]
[388851073,1759423872396,-2988.76,0.00022191,2]
[388851074,1759423872406,-500.0,0.00022191,2]
[388851075,1759423872415,-1887.97,0.00022191,2]
[388851076,1759423872425,-511.37065376,0.00022191,2]
[388851077,1759423872435,-656.02,0.00022191,2]
[388851078,1759423872445,-500.0,0.00022191,2]
[388851079,1759423872454,-842.93,0.00022191,2]
[388851080,1759423872464,-1568.34,0.00022191,2]
[388851081,1759423872474,-2810.65,0.00022191,2]
[388851082,1759423872483,-7166.41,0.00022191,2]
[388851083,1759423872494,-500.0,0.00022191,2]
[388851084,1759423872503,-500.0,0.00022191,2]
[388851085,1759423872512,-640.42,0.00022191,2]
[388851086,1759423872523,-500.0,0.00022191,2]
[388851087,1759423872533,-514.5,0.00022191,2]
[388851088,1759423872542,-500.0,0.00022191,2]
[388851089,1759423872552,-500.0,0.00022191,2]
[388851090,1759423872562,-1453.74,0.00022191,2]
[388851091,1759423872572,-500.0,0.00022191,2]
[388851092,1759423872582,-500.0,0.00022191,2]
[388851093,1759423872592,-7268.087297,0.00022191,2]
[388851094,1759423872601,-872.11,0.00022191,2]
[388851095,1759423872611,-500.0,0.00022191,2]
[388851096,1759423872621,-5828.98,0.00022191,2]
[388851097,1759423872631,-500.0,0.00022191,2]
[388851098,1759423872641,-533.96,0.00022191,2]
[388851099,1759423872651,-1174.95,0.00022191,2]
[388851100,1759423872661,-500.0,0.00022191,2]
[388851101,1759423872672,-500.0,0.00022191,2]
[388851102,1759423872682,-500.0,0.00022191,2]
[388851103,1759423872691,-1980.68,0.00022191,2]
[388851104,1759423872702,-500.0,0.00022191,2]
[388851105,1759423872711,-1123.18,0.00022191,2]
[388851106,1759423872720,-500.0,0.00022191,2]
[388851107,1759423872730,-500.0,0.00022191,2]
[388851108,1759423872740,-500.0,0.00022191,2]
[388851109,1759423872749,-500.0,0.00022191,2]
[388851110,1759423872759,-541.218044,0.00022191,2]
[388851111,1759423872769,-500.0,0.00022191,2]
[388851112,1759423872778,-2037.57,0.00022191,2]
[388851113,1759423872788,-1306.27,0.00022191,2]
[388851114,1759423872798,-500.0,0.00022191,2]
[388851115,1759423872808,-500.0,0.00022191,2]
[388851116,1759423872819,-500.0,0.00022191,2]
[388851117,1759423872829,-500.0,0.00022191,2]
[388851118,1759423872838,-2068.46,0.00022191,2]
[388851119,1759423872848,-2663.53,0.00022191,2]
[388851120,1759423872858,-2666.45,0.00022191,2]
[388851121,1759423872868,-455.855162,0.00022191,2]
[388851122,1759423872879,-500.0,0.00022191,2]
[388851123,1759423872888,-500.0,0.00022191,2]
[388851124,1759423872900,-500.0,0.00022191,2]
[388851125,1759423872910,-500.0,0.00022191,2]
[388851126,1759423872920,-1041.73,0.00022191,2]
[388851127,1759423872930,-1632.774072,0.00022191,2]
[388851128,1759423872940,-509.08602676,0.00022191,2]
[388851129,1759423872949,-500.0,0.00022191,2]
[388851130,1759423872959,-500.0,0.00022191,2]
[388851131,1759423872969,-501.16308159,0.00022191,2]
[388851132,1759423872979,-572.7,0.00022191,2]
[388851133,1759423873143,-500.0,0.00022191,2]
[388851134,1759423873153,-500.0,0.00022191,2]
[388851135,1759423873165,-500.0,0.00022191,2]
[388851136,1759423873175,-500.0,0.00022191,2]
[388851137,1759423873184,-500.0,0.00022191,2]
[388851138,1759423873194,-1322.2,0.00022191,2]
[388851139,1759423873204,-1640.1,0.00022191,2]
[388851140,1759423873215,-1760.42,0.00022191,2]
[388851141,1759423873225,-500.0,0.00022191,2]
[388851142,1759423873236,-547.92,0.00022191,2]
[388851143,1759423873246,-500.0,0.00022191,2]
[388851144,1759423873256,-7460.67576,0.00022191,2]
[388851145,1759423873267,-500.0,0.00022191,2]
[388851146,1759423873276,-500.0,0.00022191,2]
[388851147,1759423873287,-500.0,0.00022191,2]
[388851148,1759423873298,-959.65,0.00022191,2]
[388851149,1759423873308,-500.0,0.00022191,2]
[388851150,1759423873318,-500.0,0.00022191,2]
[388851151,1759423873328,-500.0,0.00022191,2]
[388851152,1759423873338,-500.0,0.00022191,2]
[388851153,1759423873348,-322.15161474,0.00022191,2]
[388851154,1759423873358,-935.06,0.00022191,2]
[388851155,1759423873368,-221.81018688,0.00022191,2]
[388851156,1759423873377,-500.0,0.00022191,2]
[388851157,1759423873388,-665.38,0.00022191,2]
[388851158,1759423873398,-859.9,0.00022191,2]
[388851159,1759423873407,-500.0,0.00022191,2]
[388851160,1759423873418,-1000.0,0.00022191,2]
[388851161,1759423873427,-500.0,0.00022191,2]
[388851162,1759423873437,-4091.057183,0.00022191,2]
[388851163,1759423873448,-2696.98,0.00022191,2]
[388851164,1759423873458,-500.0,0.00022191,2]
[388851165,1759423873468,-500.0,0.00022191,2]
[388851166,1759423873478,-691.0,0.00022191,2]
[388851167,1759423873487,-2577.68,0.00022191,2]
[388851168,1759423873497,-500.0,0.00022191,2]
[388851169,1759423873507,-1597.26,0.00022191,2]
[388851170,1759423873516,-500.0,0.00022191,2]
[388851171,1759423873526,-500.0,0.00022191,2]
[388851172,1759423873537,-350.58599822,0.00022191,2]
[388851173,1759423873546,-384.46671883,0.00022191,2]
[388851174,1759423873556,-1150.93,0.00022191,2]
[388851175,1759423873566,-500.0,0.00022191,2]
[388851176,1759423873576,-500.0,0.00022191,2]
[388851177,1759423873586,-500.0,0.00022191,2]
[388851178,1759423873596,-500.0,0.00022191,2]
[388851179,1759423873605,-500.0,0.00022191,2]
[388851180,1759423873615,-500.0,0.00022191,2]
[388851181,1759423873624,-500.0,0.00022191,2]
[388851182,1759423873634,-619.96,0.00022191,2]
[388851183,1759423873643,-516.86,0.00022191,2]
[388851184,1759423873653,-722.51,0.00022191,2]
[388851185,1759423873663,-623.88059914,0.00022191,2]
[388851186,1759423873674,-500.0,0.00022191,2]
[388851187,1759423873683,-1128.45,0.00022191,2]
[388851188,1759423873692,-500.0,0.00022191,2]
[388851189,1759423873702,-540.47,0.00022191,2]
[388851190,1759423873711,-500.0,0.00022191,2]
[388851191,1759423873720,-500.0,0.00022191,2]
[388851192,1759423873730,-547.27,0.00022191,2]
[388851193,1759423873740,-500.0,0.00022191,2]
[388851194,1759423873750,-500.0,0.00022191,2]
[388851195,1759423873760,-507.9075091,0.00022191,2]
[388851196,1759423873769,-1270.95,0.00022191,2]
[388851197,1759423873780,-2448.7,0.00022191,2]
[388851198,1759423873789,-500.0,0.00022191,2]
[388851199,1759423873799,-500.0,0.00022191,2]
[388851200,1759423873808,-500.0,0.00022191,2]
[388851201,1759423873818,-500.0,0.00022191,2]
[388851202,1759423873827,-500.0,0.00022191,2]
[388851203,1759423873837,-741.59,0.00022191,2]
[388851204,1759423873847,-831.55,0.00022191,2]
[388851205,1759423873856,-2465.59,0.00022191,2]
[388851206,1759423873866,-1887.91,0.00022191,2]
[388851207,1759423873876,-500.0,0.00022191,2]
[388851208,1759423873886,-374.22460406,0.00022191,2]
[388851209,1759423873895,-1342.46,0.00022191,2]
[388851210,1759423873906,-500.0,0.00022191,2]
[388851211,1759423873915,-500.0,0.00022191,2]
[388851212,1759423873925,-1234.65,0.00022191,2]
[388851213,1759423873935,-500.0,0.00022191,2]
[388851214,1759423873945,-3266.54,0.00022191,2]
[388851215,1759423873954,-500.0,0.00022191,2]
[388851216,1759423873963,-1023.3,0.00022191,2]
[388851217,1759423873973,-1081.76,0.00022191,2]
[388851218,1759423873982,-500.0,0.00022191,2]
[388851219,1759423873992,-500.0,0.00022191,2]
[388851220,1759423874001,-1595.26,0.00022191,2]
[388851221,1759423874011,-500.0,0.00022191,2]
[388851222,1759423874020,-500.0,0.00022191,2]
[388851223,1759423874030,-500.0,0.00022191,2]
[388851224,1759423874041,-1892.87,0.00022191,2]
[388851225,1759423874050,-1059.58,0.00022191,2]
[388851226,1759423874060,-2242.64,0.00022191,2]
[388851227,1759423874069,-599.29,0.00022191,2]
[388851228,1759423874079,-500.0,0.00022191,2]
[388851229,1759423874088,-5061.1,0.00022191,2]
[388851230,1759423874099,-500.0,0.00022191,2]
[388851231,1759423874108,-2233.72,0.00022191,2]
[388851232,1759423874120,-500.0,0.00022191,2]
[388851233,1759423874132,-500.0,0.00022191,2]
[388851234,1759423874142,-500.0,0.00022191,2]
[388851235,1759423874152,-500.0,0.00022191,2]
[388851236,1759423874163,-1140.32,0.00022191,2]
[388851237,1759423874173,-500.0,0.00022191,2]
[388851238,1759423874183,-500.0,0.00022191,2]
[388851239,1759423874193,-770.55,0.00022191,2]
[388851240,1759423874203,-500.0,0.00022191,2]
[388851241,1759423874213,-500.0,0.00022191,2]
[388851242,1759423874222,-500.0,0.00022191,2]
[388851243,1759423874232,-2583.79,0.00022191,2]
[388851244,1759423874241,-1831.54,0.00022191,2]
[388851245,1759423874252,-500.0,0.00022191,2]
[388851246,1759423874263,-1316.24,0.00022191,2]
[388851247,1759423874273,-721.22,0.00022191,2]
[388851248,1759423874285,-500.0,0.00022191,2]
[388851249,1759423874295,-500.0,0.00022191,2]
[388851250,1759423874306,-500.0,0.00022191,2]
[388851251,1759423874316,-500.0,0.00022191,2]
[388851252,1759423874326,-500.0,0.00022191,2]
[388851253,1759423874336,-500.0,0.00022191,2]
[388851254,1759423874346,-1104.99,0.00022191,2]
[388851255,1759423874356,-500.0,0.00022191,2]
[388851256,1759423874365,-1742.94,0.00022191,2]
[388851257,1759423874375,-1062.58,0.00022191,2]
[388851258,1759423874386,-965.09,0.00022191,2]
[388851259,1759423874395,-500.0,0.00022191,2]
[388851260,1759423874405,-1192.28,0.00022191,2]
[388851261,1759423874414,-2802.64,0.00022191,2]
[388851262,1759423874424,-500.0,0.00022191,2]
[388851263,1759423874434,-500.0,0.00022191,2]
[388851264,1759423874445,-500.0,0.00022191,2]
[388851265,1759423874454,-2286.95,0.00022191,2]
[388851266,1759423874464,-500.0,0.00022191,2]
[388851267,1759423874474,-500.0,0.00022191,2]
[388851268,1759423874495,-3076.39,0.00022191,2]
[388851269,1759423874509,-898.27,0.00022191,2]
[388851270,1759423874519,-1032.26,0.00022191,2]
[388851271,1759423874531,-2087.14,0.00022191,2]
[388851272,1759423874542,-685.58,0.00022191,2]
[388851273,1759423874553,-500.0,0.00022191,2]
[388851274,1759423874563,-500.0,0.00022191,2]
[388851275,1759423874574,-500.0,0.00022191,2]
[388851276,1759423874586,-500.0,0.00022191,2]
[388851277,1759423874596,-500.0,0.00022191,2]
[388851278,1759423874607,-1665.53,0.00022191,2]
[388851279,1759423874617,-633.43,0.00022191,2]
[388851280,1759423874628,-559.69,0.00022191,2]
[388851281,1759423874638,-500.0,0.00022191,2]
[388851282,1759423874647,-500.0,0.00022191,2]
[388851283,1759423874658,-394.09981696,0.00022191,2]
[388851284,1759423874669,-1099.68,0.00022191,2]
[388851285,1759423874679,-500.0,0.00022191,2]
[388851286,1759423874689,-500.0,0.00022191,2]
[388851287,1759423874699,-3385.87,0.00022191,2]
[388851288,1759423874709,-500.0,0.00022191,2]
[388851289,1759423874719,-500.0,0.00022191,2]
[388851290,1759423874730,-500.0,0.00022191,2]
[388851291,1759423874741,-345.94506218,0.00022191,2]
[388851292,1759423874751,-4060.58,0.00022191,2]
[388851293,1759423874761,-2294.6,0.00022191,2]
[388851294,1759423874771,-500.0,0.00022191,2]
[388851295,1759423874783,-500.0,0.00022191,2]
[388851296,1759423874793,-500.0,0.00022191,2]
[388851297,1759423874803,-500.0,0.00022191,2]
[388851298,1759423874813,-6013.73,0.00022191,2]
[388851299,1759423874824,-500.0,0.00022191,2]
[388851300,1759423874835,-500.0,0.00022191,2]
[388851301,1759423874846,-500.0,0.00022191,2]
[388851302,1759423874856,-500.0,0.00022191,2]
[388851303,1759423874866,-500.0,0.00022191,2]
[388851304,1759423874883,-500.0,0.00022191,2]
[388851305,1759423874895,-2623.98,0.00022191,2]
[388851306,1759423874906,-7455.15,0.00022191,2]
[388851307,1759423874918,-500.0,0.00022191,2]
[388851308,1759423874929,-977.48,0.00022191,2]
[388851309,1759423874940,-500.0,0.00022191,2]
[388851310,1759423874950,-500.0,0.00022191,2]
[388851311,1759423874961,-500.0,0.00022191,2]
[388851312,1759423874971,-500.0,0.00022191,2]
[388851313,1759423874982,-500.0,0.00022191,2]
[388851314,1759423874993,-1049.27,0.00022191,2]
[388851315,1759423875004,-500.0,0.00022191,2]
[388851316,1759423875015,-746.26,0.00022191,2]
[388851317,1759423875026,-751.79,0.00022191,2]
[388851318,1759423875037,-500.0,0.00022191,2]
[388851319,1759423875048,-2858.4,0.00022191,2]
[388851320,1759423875059,-501.81677414,0.00022191,2]
[388851321,1759423875070,-500.0,0.00022191,2]
[388851322,1759423875081,-1037.23,0.00022191,2]
[388851323,1759423875092,-500.0,0.00022191,2]
[388851324,1759423875103,-500.0,0.00022191,2]
[388851325,1759423875116,-500.0,0.00022191,2]
[388851326,1759423875129,-500.0,0.00022191,2]
[388851327,1759423875140,-3013.9,0.00022191,2]
[388851328,1759423875151,-500.0,0.00022191,2]
[388851329,1759423875163,-500.0,0.00022191,2]
[388851330,1759423875174,-2701.59,0.00022191,2]
[388851331,1759423875185,-624.53,0.00022191,2]
[388851332,1759423875196,-2757.0,0.00022191,2]
[388851333,1759423875207,-500.0,0.00022191,2]
[388851334,1759423875217,-500.0,0.00022191,2]
[388851335,1759423875227,-500.47756071,0.00022191,2]
[388851336,1759423875238,-582.51,0.00022191,2]
[388851337,1759423875248,-598.69,0.00022191,2]
[388851338,1759423875258,-1333.64,0.00022191,2]
[388851339,1759423875275,-500.0,0.00022191,2]
[388851340,1759423875287,-1321.73,0.00022191,2]
[388851341,1759423875298,-500.0,0.00022191,2]
[388851342,1759423875308,-500.0,0.00022191,2]
[388851343,1759423875319,-500.0,0.00022191,2]
[388851344,1759423875330,-500.0,0.00022191,2]
[388851345,1759423875341,-500.0,0.00022191,2]
[388851346,1759423875351,-5546.49,0.00022191,2]
[388851347,1759423875363,-2569.2,0.00022191,2]
[388851348,1759423875374,-8523.78,0.00022191,2]
[388851349,1759423875385,-5945.66,0.00022191,2]
[388851350,1759423876028,-2329.11,0.00022191,2]
[388851351,1759423876041,-13051.47,0.00022191,2]
[388851352,1759423876050,-2569.47,0.00022191,2]
[388851353,1759423876060,-500.0,0.00022191,2]
[388851354,1759423876070,-866.87,0.00022191,2]
[388851355,1759423876080,-500.0,0.00022191,2]
[388851356,1759423876092,-506.59788982,0.00022191,2]
[388851357,1759423876102,-500.0,0.00022191,2]
[388851358,1759423876112,-500.0,0.00022191,2]
[388851359,1759423876125,-500.0,0.00022191,2]
[388851360,1759423876135,-500.0,0.00022191,2]
[388851361,1759423876144,-500.0,0.00022191,2]
[388851362,1759423876154,-500.0,0.00022191,2]
[388851363,1759423876167,-500.0,0.00022191,2]
[388851364,1759423876177,-500.0,0.00022191,2]
[388851365,1759423876188,-515.04621448,0.00022191,2]
[388851366,1759423876200,-500.0,0.00022191,2]
[388851367,1759423876211,-500.0,0.00022191,2]
[388851368,1759423876220,-500.0,0.00022191,2]
[388851369,1759423876230,-2239.69,0.00022191,2]
[388851370,1759423876240,-500.0,0.00022191,2]
[388851371,1759423876249,-500.0,0.00022191,2]
[388851372,1759423876259,-500.0,0.00022191,2]
[388851373,1759423876268,-500.0,0.00022191,2]
[388851374,1759423876278,-3000.14,0.00022191,2]
[388851375,1759423876290,-780.87,0.00022191,2]
[388851376,1759423876300,-1298.24,0.00022191,2]
[388851377,1759423876310,-874.11,0.00022191,2]
[388851378,1759423876320,-500.0,0.00022191,2]
[388851379,1759423876330,-500.0,0.00022191,2]
[388851380,1759423876340,-500.0,0.00022191,2]
[388851381,1759423876350,-1954.5,0.00022191,2]
[388851382,1759423876359,-500.0,0.00022191,2]
[388851383,1759423876369,-3784.29,0.00022191,2]
[388851384,1759423876378,-500.0,0.00022191,2]
[388851385,1759423876388,-581.62,0.00022191,2]
[388851386,1759423876397,-709.32,0.00022191,2]
[388851387,1759423876406,-500.0,0.00022191,2]
[388851388,1759423876415,-500.0,0.00022191,2]
[388851389,1759423876424,-500.0,0.00022191,2]
[388851390,1759423876433,-500.0,0.00022191,2]
[388851391,1759423876443,-500.0,0.00022191,2]
[388851392,1759423876452,-500.0,0.00022191,2]
[388851393,1759423876461,-500.0,0.00022191,2]
[388851394,1759423876471,-500.0,0.00022191,2]
[388851395,1759423876480,-1606.92,0.00022191,2]
[388851396,1759423876490,-500.0,0.00022191,2]
[388851397,1759423876499,-1332.93,0.00022191,2]
[388851398,1759423876509,-500.0,0.00022191,2]
[388851399,1759423876520,-3371.85,0.00022191,2]
[388851400,1759423876530,-500.0,0.00022191,2]
[388851401,1759423876540,-500.0,0.00022191,2]
[388851402,1759423876568,-500.0,0.00022191,2]